[Event "Titled Tuesday Blitz March 01 Late 2022"]
[White "Shuvalova, Polina"]
[Black "Glavina, Pablo"]
[WhiteFideId "24171760"]
[BlackFideId "100234"]
[WhiteElo "2355"]
[BlackElo "2369"]
[Result "1-0"]
[Round "09"]
[TimeControl "180+1"]
[Date "2022.03.01"]
[WhiteClock "0:01:05"]
[BlackClock "0:00:05"]

1. d4 {[%clk 0:03:00]}  Nf6 {[%clk 0:02:54]} 2. Nf3 {[%clk 0:02:59]}  e6 {[%clk 0:02:54]} 3. Bf4 {[%clk 0:02:58]}  c5 {[%clk 0:02:52]} 4. e3 {[%clk 0:02:56]}  Qb6 {[%clk 0:02:43]} 5. b3 {[%clk 0:02:50]}  Nc6 {[%clk 0:02:37]} 6. c3 {[%clk 0:02:48]}  d5 {[%clk 0:02:31]} 7. Nbd2 {[%clk 0:02:46]}  h6 {[%clk 0:02:23]} 8. h3 {[%clk 0:02:44]}  Be7 {[%clk 0:02:15]} 9. Bd3 {[%clk 0:02:42]}  Qa5 {[%clk 0:02:04]} 10. Qc1 {[%clk 0:01:59]}  cxd4 {[%clk 0:02:03]} 11. cxd4 {[%clk 0:01:54]}  Ba3 {[%clk 0:01:59]} 12. Qd1 {[%clk 0:01:51]}  Nb4 {[%clk 0:01:53]} 13. Be2 {[%clk 0:01:47]}  Ne4 {[%clk 0:01:47]} 14. Nxe4 {[%clk 0:01:40]}  dxe4 {[%clk 0:01:29]} 15. Nd2 {[%clk 0:01:40]}  g5 {[%clk 0:01:20]} 16. Be5 {[%clk 0:01:37]}  O-O {[%clk 0:01:11]} 17. O-O {[%clk 0:01:35]}  f6 {[%clk 0:01:11]} 18. Nc4 {[%clk 0:01:32]}  Qa6 {[%clk 0:01:00]} 19. Bd6 {[%clk 0:01:22]}  Rd8 {[%clk 0:00:49]} 20. Be7 {[%clk 0:01:21]}  Rd7 {[%clk 0:00:44]} 21. Bxf6 {[%clk 0:01:20]}  Nd3 {[%clk 0:00:31]} 22. Bxd3 {[%clk 0:01:17]}  exd3 {[%clk 0:00:32]} 23. Qxd3 {[%clk 0:01:16]}  Bf8 {[%clk 0:00:31]} 24. Qg6+ {[%clk 0:01:16]}  Bg7 {[%clk 0:00:29]} 25. Ne5 {[%clk 0:01:10]}  Qd6 {[%clk 0:00:08]} 26. Nxd7 {[%clk 0:01:06]}  Qxd7 {[%clk 0:00:05]} 27. Rac1 {[%clk 0:01:05]} 1-0


[Site "https://www.chess.com"]

[Event "Titled Tuesday Blitz March 01 Late 2022"]
[White "Stankovic, Ivan G"]
[Black "Aldokhin, Ivan"]
[WhiteFideId "902837"]
[BlackFideId "24115720"]
[WhiteElo "2195"]
[BlackElo "2231"]
[Result "0-1"]
[Round "09"]
[TimeControl "180+1"]
[Date "2022.03.02"]
[WhiteClock "0:00:06"]
[BlackClock "0:00:58"]

1. e4 {[%clk 0:00:50]}  c5 {[%clk 0:02:46]} 2. c4 {[%clk 0:00:50]}  e6 {[%clk 0:02:47]} 3. Nc3 {[%clk 0:00:50]}  a6 {[%clk 0:02:47]} 4. g3 {[%clk 0:00:51]}  Nc6 {[%clk 0:02:47]} 5. Bg2 {[%clk 0:00:52]}  Nf6 {[%clk 0:02:47]} 6. Nge2 {[%clk 0:00:53]}  Be7 {[%clk 0:02:45]} 7. d3 {[%clk 0:00:54]}  O-O {[%clk 0:02:45]} 8. O-O {[%clk 0:00:55]}  d6 {[%clk 0:02:44]} 9. h3 {[%clk 0:00:56]}  b6 {[%clk 0:02:43]} 10. g4 {[%clk 0:00:56]}  Bb7 {[%clk 0:02:44]} 11. Be3 {[%clk 0:00:56]}  h6 {[%clk 0:02:42]} 12. Ng3 {[%clk 0:00:57]}  Nd4 {[%clk 0:02:37]} 13. f4 {[%clk 0:00:57]}  d5 {[%clk 0:02:34]} 14. cxd5 {[%clk 0:00:57]}  exd5 {[%clk 0:02:33]} 15. e5 {[%clk 0:00:58]}  Ne8 {[%clk 0:02:32]} 16. Qd2 {[%clk 0:00:56]}  Nc7 {[%clk 0:02:32]} 17. Rae1 {[%clk 0:00:55]}  Bh4 {[%clk 0:02:30]} 18. Nh5 {[%clk 0:00:50]}  Bxe1 {[%clk 0:02:28]} 19. Rxe1 {[%clk 0:00:50]}  Qe7 {[%clk 0:02:19]} 20. f5 {[%clk 0:00:39]}  Rae8 {[%clk 0:02:00]} 21. f6 {[%clk 0:00:26]}  Qxe5 {[%clk 0:02:00]} 22. fxg7 {[%clk 0:00:23]}  Qd6 {[%clk 0:01:38]} 23. gxf8=Q+ {[%clk 0:00:23]}  Rxf8 {[%clk 0:01:39]} 24. Bf4 {[%clk 0:00:21]}  Qc6 {[%clk 0:01:33]} 25. Bxh6 {[%clk 0:00:19]}  Re8 {[%clk 0:01:29]} 26. Rxe8+ {[%clk 0:00:18]}  Nxe8 {[%clk 0:01:28]} 27. Nxd5 {[%clk 0:00:12]}  Kh8 {[%clk 0:01:02]} 28. Qf4 {[%clk 0:00:06]}  Ne2+ {[%clk 0:01:00]} 29. Kf2 {[%clk 0:00:06]}  Nxf4 {[%clk 0:00:59]} 30. Ndxf4 {[%clk 0:00:06]}  Qxh6 {[%clk 0:00:58]} 0-1


[Site "https://www.chess.com"]

[Event "Titled Tuesday Blitz March 01 Late 2022"]
[White "Svane, Rasmus"]
[Black "Kaasen, Tor Fredrik"]
[WhiteFideId "4657101"]
[BlackFideId "1516647"]
[WhiteElo "2645"]
[BlackElo "2335"]
[Result "1-0"]
[Round "09"]
[TimeControl "180+1"]
[Date "2022.03.01"]
[WhiteClock "0:00:50"]
[BlackClock "0:00:09"]

1. Nf3 {[%clk 0:03:00]}  d5 {[%clk 0:02:59]} 2. g3 {[%clk 0:02:58]}  g6 {[%clk 0:03:00]} 3. Bg2 {[%clk 0:02:56]}  Bg7 {[%clk 0:03:00]} 4. d4 {[%clk 0:02:56]}  Nf6 {[%clk 0:02:59]} 5. O-O {[%clk 0:02:56]}  O-O {[%clk 0:02:59]} 6. c4 {[%clk 0:02:57]}  c6 {[%clk 0:03:00]} 7. Qb3 {[%clk 0:02:57]}  a5 {[%clk 0:03:00]} 8. Rd1 {[%clk 0:02:57]}  a4 {[%clk 0:02:53]} 9. Qb4 {[%clk 0:02:56]}  Be6 {[%clk 0:02:48]} 10. cxd5 {[%clk 0:02:48]}  Bxd5 {[%clk 0:02:42]} 11. Nc3 {[%clk 0:02:41]}  Qa5 {[%clk 0:02:23]} 12. Qxa5 {[%clk 0:02:33]}  Rxa5 {[%clk 0:02:24]} 13. Bd2 {[%clk 0:02:33]}  Ra6 {[%clk 0:02:25]} 14. Rac1 {[%clk 0:02:27]}  Ne4 {[%clk 0:02:20]} 15. Nxe4 {[%clk 0:02:04]}  Bxe4 {[%clk 0:02:21]} 16. Bb4 {[%clk 0:02:05]}  Re8 {[%clk 0:02:10]} 17. Ng5 {[%clk 0:01:52]}  Bxg2 {[%clk 0:02:06]} 18. Kxg2 {[%clk 0:01:53]}  Nd7 {[%clk 0:01:40]} 19. Ne4 {[%clk 0:01:51]}  Bf8 {[%clk 0:01:23]} 20. d5 {[%clk 0:01:27]}  cxd5 {[%clk 0:01:19]} 21. Rxd5 {[%clk 0:01:28]}  Nb8 {[%clk 0:01:10]} 22. Rb5 {[%clk 0:01:26]}  Bg7 {[%clk 0:01:01]} 23. Rxb7 {[%clk 0:01:20]}  Bxb2 {[%clk 0:01:00]} 24. Rxe7 {[%clk 0:01:13]}  Rxe7 {[%clk 0:00:49]} 25. Rc8+ {[%clk 0:01:11]}  Kg7 {[%clk 0:00:49]} 26. Bxe7 {[%clk 0:01:12]}  Nd7 {[%clk 0:00:46]} 27. Nd6 {[%clk 0:01:05]}  Be5 {[%clk 0:00:25]} 28. Ne8+ {[%clk 0:00:57]}  Kh6 {[%clk 0:00:25]} 29. f4 {[%clk 0:00:58]}  Bf6 {[%clk 0:00:10]} 30. Nxf6 {[%clk 0:00:48]}  Nxf6 {[%clk 0:00:11]} 31. Bf8+ {[%clk 0:00:49]}  Kh5 {[%clk 0:00:09]} 32. Rc5+ {[%clk 0:00:50]} 1-0


[Site "https://www.chess.com"]

[Event "Titled Tuesday Blitz March 01 Late 2022"]
[White "Tanenbaum, Zachary"]
[Black "Renjith, Sravan"]
[WhiteFideId "2060850"]
[BlackFideId "4306783"]
[WhiteElo "2168"]
[BlackElo "1863"]
[Result "0-1"]
[Round "09"]
[TimeControl "180+1"]
[Date "2022.03.01"]
[WhiteClock "0:00:03"]
[BlackClock "0:00:06"]

1. e4 {[%clk 0:03:00]}  e5 {[%clk 0:02:22]} 2. Nf3 {[%clk 0:02:59]}  Nc6 {[%clk 0:02:21]} 3. Bc4 {[%clk 0:02:59]}  Nf6 {[%clk 0:02:21]} 4. d3 {[%clk 0:02:59]}  Bc5 {[%clk 0:02:21]} 5. c3 {[%clk 0:03:00]}  O-O {[%clk 0:02:22]} 6. Nbd2 {[%clk 0:03:00]}  d6 {[%clk 0:02:22]} 7. a4 {[%clk 0:03:01]}  a6 {[%clk 0:02:22]} 8. Nf1 {[%clk 0:03:02]}  Ba7 {[%clk 0:02:20]} 9. Ng3 {[%clk 0:03:02]}  Ne7 {[%clk 0:02:17]} 10. O-O {[%clk 0:03:01]}  c6 {[%clk 0:02:13]} 11. Bg5 {[%clk 0:02:57]}  Ne8 {[%clk 0:01:51]} 12. d4 {[%clk 0:02:50]}  h6 {[%clk 0:01:43]} 13. Bh4 {[%clk 0:02:43]}  Qc7 {[%clk 0:01:35]} 14. h3 {[%clk 0:02:08]}  Ng6 {[%clk 0:01:27]} 15. dxe5 {[%clk 0:02:05]}  Nxh4 {[%clk 0:01:22]} 16. Nxh4 {[%clk 0:02:05]}  dxe5 {[%clk 0:01:22]} 17. Ng6 {[%clk 0:02:05]}  Nd6 {[%clk 0:01:21]} 18. Bb3 {[%clk 0:01:41]}  Re8 {[%clk 0:01:15]} 19. Qh5 {[%clk 0:01:39]}  Be6 {[%clk 0:01:02]} 20. Bxe6 {[%clk 0:01:38]}  Rxe6 {[%clk 0:01:03]} 21. Nh4 {[%clk 0:01:22]}  Rae8 {[%clk 0:00:54]} 22. Nhf5 {[%clk 0:01:19]}  Rg6 {[%clk 0:00:41]} 23. Rad1 {[%clk 0:01:15]}  Nxf5 {[%clk 0:00:34]} 24. Nxf5 {[%clk 0:01:16]}  Rg5 {[%clk 0:00:31]} 25. Qf3 {[%clk 0:01:14]}  Kh7 {[%clk 0:00:28]} 26. h4 {[%clk 0:01:09]}  Rg6 {[%clk 0:00:28]} 27. Rd3 {[%clk 0:01:03]}  Rf6 {[%clk 0:00:26]} 28. Qh3 {[%clk 0:00:38]}  g6 {[%clk 0:00:23]} 29. Ng3 {[%clk 0:00:34]}  Rd8 {[%clk 0:00:21]} 30. Ne2 {[%clk 0:00:24]}  b5 {[%clk 0:00:18]} 31. axb5 {[%clk 0:00:23]}  axb5 {[%clk 0:00:19]} 32. Nc1 {[%clk 0:00:15]}  Qb6 {[%clk 0:00:18]} 33. Rxd8 {[%clk 0:00:14]}  Rxf2 {[%clk 0:00:11]} 34. Rxf2 {[%clk 0:00:05]}  Qxf2+ {[%clk 0:00:12]} 35. Kh2 {[%clk 0:00:05]}  Qg1+ {[%clk 0:00:09]} 36. Kg3 {[%clk 0:00:06]}  Qe1+ {[%clk 0:00:06]} 37. Kf3 {[%clk 0:00:02]}  Qf2+ {[%clk 0:00:05]} 38. Kg4 {[%clk 0:00:03]}  h5+ {[%clk 0:00:06]} 39. Kg5 {[%clk 0:00:03]}  f6# {[%clk 0:00:06]} 0-1


[Site "https://www.chess.com"]

[Event "Titled Tuesday Blitz March 01 Late 2022"]
[White "Tari, Aryan"]
[Black "Domingo Nunez, Alejandro"]
[WhiteFideId "1510045"]
[BlackFideId "22245561"]
[WhiteElo "2567"]
[BlackElo "2215"]
[Result "1-0"]
[Round "09"]
[TimeControl "180+1"]
[Date "2022.03.01"]
[WhiteClock "0:00:28"]
[BlackClock "0:00:02"]

1. e4 {[%clk 0:03:00]}  g6 {[%clk 0:03:00]} 2. d4 {[%clk 0:03:00]}  Bg7 {[%clk 0:03:00]} 3. Nf3 {[%clk 0:02:58]}  c6 {[%clk 0:03:00]} 4. Nc3 {[%clk 0:02:55]}  d5 {[%clk 0:03:00]} 5. h3 {[%clk 0:02:56]}  dxe4 {[%clk 0:02:58]} 6. Nxe4 {[%clk 0:02:57]}  Nf6 {[%clk 0:02:57]} 7. Nxf6+ {[%clk 0:02:57]}  exf6 {[%clk 0:02:58]} 8. Bc4 {[%clk 0:02:57]}  O-O {[%clk 0:02:57]} 9. O-O {[%clk 0:02:58]}  a5 {[%clk 0:02:58]} 10. a4 {[%clk 0:02:58]}  Na6 {[%clk 0:02:55]} 11. c3 {[%clk 0:02:57]}  Nc7 {[%clk 0:02:54]} 12. Bf4 {[%clk 0:02:53]}  Nd5 {[%clk 0:02:54]} 13. Bh2 {[%clk 0:02:54]}  Be6 {[%clk 0:02:54]} 14. Bd3 {[%clk 0:02:50]}  Re8 {[%clk 0:01:47]} 15. Nd2 {[%clk 0:02:49]}  f5 {[%clk 0:01:46]} 16. Nc4 {[%clk 0:02:45]}  f4 {[%clk 0:01:46]} 17. Qf3 {[%clk 0:02:42]}  g5 {[%clk 0:01:43]} 18. Rae1 {[%clk 0:02:40]}  h6 {[%clk 0:01:41]} 19. Ne5 {[%clk 0:02:26]}  c5 {[%clk 0:01:13]} 20. Bb5 {[%clk 0:01:50]}  Re7 {[%clk 0:01:08]} 21. dxc5 {[%clk 0:01:50]}  Qc7 {[%clk 0:01:08]} 22. Nd3 {[%clk 0:01:44]}  Rd8 {[%clk 0:00:59]} 23. Re2 {[%clk 0:01:44]}  Nf6 {[%clk 0:00:44]} 24. Rfe1 {[%clk 0:01:39]}  Bf8 {[%clk 0:00:42]} 25. Nxf4 {[%clk 0:01:21]}  gxf4 {[%clk 0:00:37]} 26. Bxf4 {[%clk 0:01:22]}  Qxc5 {[%clk 0:00:37]} 27. Be5 {[%clk 0:01:22]}  Ne8 {[%clk 0:00:17]} 28. Bd3 {[%clk 0:01:08]}  Rxd3 {[%clk 0:00:17]} 29. Qxd3 {[%clk 0:01:07]}  Bg7 {[%clk 0:00:15]} 30. Bxg7 {[%clk 0:01:03]}  Nxg7 {[%clk 0:00:16]} 31. Re5 {[%clk 0:01:00]}  Qc7 {[%clk 0:00:16]} 32. Qg3 {[%clk 0:01:00]}  Kh7 {[%clk 0:00:15]} 33. Kh2 {[%clk 0:00:55]}  Qb6 {[%clk 0:00:10]} 34. R1e2 {[%clk 0:00:54]}  Rd7 {[%clk 0:00:07]} 35. Qf4 {[%clk 0:00:47]}  Qd8 {[%clk 0:00:07]} 36. R2e3 {[%clk 0:00:42]}  b6 {[%clk 0:00:06]} 37. Rg3 {[%clk 0:00:42]}  Ne8 {[%clk 0:00:03]} 38. Qe4+ {[%clk 0:00:33]}  Kh8 {[%clk 0:00:02]} 39. Rb5 {[%clk 0:00:28]}  Qf6 {[%clk 0:00:02]} 40. Rxb6 {[%clk 0:00:27]}  Nd6 {[%clk 0:00:02]} 41. Qa8+ {[%clk 0:00:27]}  Rd8 {[%clk 0:00:01]} 42. Qxa5 {[%clk 0:00:27]}  Kh7 {[%clk 0:00:01]} 43. Qc5 {[%clk 0:00:27]}  Ne4 {[%clk 0:00:01]} 44. Qe3 {[%clk 0:00:26]}  Nxg3 {[%clk 0:00:02]} 45. Qxg3 {[%clk 0:00:27]}  Rd5 {[%clk 0:00:02]} 46. Rb5 {[%clk 0:00:26]}  Rxb5 {[%clk 0:00:02]} 47. axb5 {[%clk 0:00:27]}  Qf5 {[%clk 0:00:03]} 48. b6 {[%clk 0:00:27]}  Qb5 {[%clk 0:00:03]} 49. Qc7 {[%clk 0:00:27]}  Qxb2 {[%clk 0:00:02]} 50. b7 {[%clk 0:00:28]} 1-0


[Site "https://www.chess.com"]

[Event "Titled Tuesday Blitz March 01 Late 2022"]
[White "Tomiello, Mateus Costamilan"]
[Black "Derraugh, Geordie"]
[WhiteFideId "22701958"]
[BlackFideId "2603950"]
[WhiteElo "1975"]
[BlackElo "2116"]
[Result "1-0"]
[Round "09"]
[TimeControl "180+1"]
[Date "2022.03.02"]
[WhiteClock "0:00:16"]
[BlackClock "0:00:02"]

1. e4 {[%clk 0:03:00]}  c5 {[%clk 0:02:59]} 2. Nf3 {[%clk 0:02:57]}  d6 {[%clk 0:02:59]} 3. d4 {[%clk 0:02:58]}  cxd4 {[%clk 0:03:00]} 4. Nxd4 {[%clk 0:02:58]}  Nf6 {[%clk 0:03:00]} 5. Nc3 {[%clk 0:02:59]}  a6 {[%clk 0:03:00]} 6. Be3 {[%clk 0:02:57]}  e5 {[%clk 0:03:00]} 7. Nb3 {[%clk 0:02:55]}  Be6 {[%clk 0:03:01]} 8. f3 {[%clk 0:02:55]}  Nbd7 {[%clk 0:03:01]} 9. Qd2 {[%clk 0:02:55]}  b5 {[%clk 0:03:01]} 10. g4 {[%clk 0:02:54]}  Nb6 {[%clk 0:03:01]} 11. g5 {[%clk 0:02:45]}  Nh5 {[%clk 0:03:01]} 12. Na5 {[%clk 0:02:42]}  Rc8 {[%clk 0:02:55]} 13. a3 {[%clk 0:02:38]}  Qc7 {[%clk 0:02:35]} 14. Rg1 {[%clk 0:02:25]}  f5 {[%clk 0:02:35]} 15. h4 {[%clk 0:02:17]}  f4 {[%clk 0:02:28]} 16. Bf2 {[%clk 0:02:13]}  Be7 {[%clk 0:02:20]} 17. O-O-O {[%clk 0:02:11]}  Na4 {[%clk 0:02:12]} 18. Nd5 {[%clk 0:02:06]}  Bxd5 {[%clk 0:02:09]} 19. exd5 {[%clk 0:02:05]}  O-O {[%clk 0:01:38]} 20. Nc6 {[%clk 0:02:05]}  Qd7 {[%clk 0:01:37]} 21. Rh1 {[%clk 0:01:53]}  Rxc6 {[%clk 0:01:31]} 22. dxc6 {[%clk 0:01:51]}  Qxc6 {[%clk 0:01:32]} 23. Qd5+ {[%clk 0:01:45]}  Qxd5 {[%clk 0:01:31]} 24. Rxd5 {[%clk 0:01:46]}  Rc8 {[%clk 0:01:30]} 25. Bd3 {[%clk 0:01:39]}  g6 {[%clk 0:01:25]} 26. Be4 {[%clk 0:01:37]}  Ng7 {[%clk 0:01:19]} 27. Rd3 {[%clk 0:01:27]}  Rc7 {[%clk 0:01:19]} 28. Bd5+ {[%clk 0:01:13]}  Kf8 {[%clk 0:01:19]} 29. b3 {[%clk 0:01:05]}  Nc5 {[%clk 0:01:16]} 30. Rd2 {[%clk 0:01:01]}  Nf5 {[%clk 0:01:14]} 31. Kb2 {[%clk 0:01:00]}  a5 {[%clk 0:00:58]} 32. c4 {[%clk 0:00:39]}  bxc4 {[%clk 0:00:51]} 33. Bxc4 {[%clk 0:00:40]}  a4 {[%clk 0:00:19]} 34. b4 {[%clk 0:00:32]}  Nd7 {[%clk 0:00:07]} 35. Rc1 {[%clk 0:00:31]}  Rb7 {[%clk 0:00:05]} 36. Bd5 {[%clk 0:00:31]}  Rb8 {[%clk 0:00:05]} 37. Be6 {[%clk 0:00:30]}  Nc5 {[%clk 0:00:04]} 38. Bxc5 {[%clk 0:00:30]}  dxc5 {[%clk 0:00:04]} 39. Bxf5 {[%clk 0:00:30]}  gxf5 {[%clk 0:00:04]} 40. Rd5 {[%clk 0:00:20]}  cxb4 {[%clk 0:00:04]} 41. Rxe5 {[%clk 0:00:20]}  h6 {[%clk 0:00:02]} 42. Rxf5+ {[%clk 0:00:20]}  Kg7 {[%clk 0:00:03]} 43. axb4 {[%clk 0:00:20]}  hxg5 {[%clk 0:00:02]} 44. b5 {[%clk 0:00:16]}  Kg6 {[%clk 0:00:02]} 45. Rd5 {[%clk 0:00:16]} 1-0


[Site "https://www.chess.com"]

[Event "Titled Tuesday Blitz March 01 Late 2022"]
[White "Van Foreest, Jorden"]
[Black "Suleymanli, Aydin"]
[WhiteFideId "1039784"]
[BlackFideId "13413937"]
[WhiteElo "2609"]
[BlackElo "2529"]
[Result "1-0"]
[Round "09"]
[TimeControl "180+1"]
[Date "2022.03.01"]
[WhiteClock "0:00:09"]
[BlackClock "0:00:01"]

1. h3 {[%clk 0:03:00]}  d5 {[%clk 0:02:55]} 2. d4 {[%clk 0:02:59]}  Nf6 {[%clk 0:02:55]} 3. Nf3 {[%clk 0:02:58]}  c5 {[%clk 0:02:55]} 4. dxc5 {[%clk 0:02:57]}  Nc6 {[%clk 0:02:54]} 5. a3 {[%clk 0:02:53]}  a5 {[%clk 0:02:51]} 6. Nc3 {[%clk 0:02:49]}  e6 {[%clk 0:02:46]} 7. Na4 {[%clk 0:02:47]}  Nd7 {[%clk 0:02:45]} 8. e4 {[%clk 0:02:45]}  Nxc5 {[%clk 0:02:34]} 9. Nxc5 {[%clk 0:02:44]}  Bxc5 {[%clk 0:02:35]} 10. exd5 {[%clk 0:02:44]}  exd5 {[%clk 0:02:35]} 11. Bd3 {[%clk 0:02:43]}  O-O {[%clk 0:02:36]} 12. O-O {[%clk 0:02:43]}  h6 {[%clk 0:02:36]} 13. Bf4 {[%clk 0:02:41]}  Qf6 {[%clk 0:02:36]} 14. Qd2 {[%clk 0:02:41]}  Qxb2 {[%clk 0:02:30]} 15. Rfe1 {[%clk 0:02:26]}  Qf6 {[%clk 0:02:23]} 16. Bg3 {[%clk 0:02:00]}  Bxh3 {[%clk 0:02:14]} 17. Bh4 {[%clk 0:01:57]}  g5 {[%clk 0:02:14]} 18. Bxg5 {[%clk 0:01:44]}  hxg5 {[%clk 0:01:51]} 19. gxh3 {[%clk 0:01:44]}  Nd4 {[%clk 0:01:32]} 20. Nh2 {[%clk 0:01:10]}  Bd6 {[%clk 0:01:17]} 21. Ng4 {[%clk 0:00:39]}  Nf3+ {[%clk 0:01:14]} 22. Kg2 {[%clk 0:00:38]}  Nxe1+ {[%clk 0:00:26]} 23. Rxe1 {[%clk 0:00:39]}  Qg7 {[%clk 0:00:26]} 24. Bf5 {[%clk 0:00:38]}  Bxa3 {[%clk 0:00:13]} 25. Qxd5 {[%clk 0:00:37]}  Ra6 {[%clk 0:00:12]} 26. Qxb7 {[%clk 0:00:36]}  Rd6 {[%clk 0:00:12]} 27. Re3 {[%clk 0:00:34]}  Bc5 {[%clk 0:00:09]} 28. Rg3 {[%clk 0:00:35]}  Rd2 {[%clk 0:00:09]} 29. Qc6 {[%clk 0:00:32]}  Qd4 {[%clk 0:00:06]} 30. Rf3 {[%clk 0:00:29]}  Rd8 {[%clk 0:00:03]} 31. Qh6 {[%clk 0:00:30]}  Qg7 {[%clk 0:00:02]} 32. Qh5 {[%clk 0:00:28]}  R8d5 {[%clk 0:00:01]} 33. Nf6+ {[%clk 0:00:28]}  Qxf6 {[%clk 0:00:02]} 34. Bh7+ {[%clk 0:00:27]}  Kg7 {[%clk 0:00:02]} 35. Rxf6 {[%clk 0:00:25]}  Kxf6 {[%clk 0:00:03]} 36. Bd3 {[%clk 0:00:23]}  Rxf2+ {[%clk 0:00:03]} 37. Kg3 {[%clk 0:00:24]}  Rf4 {[%clk 0:00:03]} 38. Qh6+ {[%clk 0:00:22]}  Ke7 {[%clk 0:00:03]} 39. Qc6 {[%clk 0:00:21]}  Bd6 {[%clk 0:00:04]} 40. Kg2 {[%clk 0:00:19]}  Rc5 {[%clk 0:00:04]} 41. Qb7+ {[%clk 0:00:19]}  Bc7 {[%clk 0:00:04]} 42. Qa7 {[%clk 0:00:16]}  Kd6 {[%clk 0:00:04]} 43. Qa6+ {[%clk 0:00:16]}  Rc6 {[%clk 0:00:05]} 44. Qa8 {[%clk 0:00:15]}  Rc5 {[%clk 0:00:04]} 45. Qf8+ {[%clk 0:00:16]}  Kc6 {[%clk 0:00:04]} 46. Qe8+ {[%clk 0:00:16]}  Kb6 {[%clk 0:00:04]} 47. Be4 {[%clk 0:00:17]}  Rc4 {[%clk 0:00:04]} 48. Bd3 {[%clk 0:00:16]}  Rb4 {[%clk 0:00:05]} 49. Qe3+ {[%clk 0:00:15]}  Kb7 {[%clk 0:00:04]} 50. Qe7 {[%clk 0:00:14]}  g4 {[%clk 0:00:05]} 51. h4 {[%clk 0:00:14]}  Rf3 {[%clk 0:00:04]} 52. Be4+ {[%clk 0:00:12]}  Rxe4 {[%clk 0:00:03]} 53. Qxe4+ {[%clk 0:00:13]}  Kb6 {[%clk 0:00:03]} 54. h5 {[%clk 0:00:12]}  f5 {[%clk 0:00:02]} 55. Qe6+ {[%clk 0:00:11]}  Kc5 {[%clk 0:00:03]} 56. h6 {[%clk 0:00:11]}  Rg3+ {[%clk 0:00:03]} 57. Kf2 {[%clk 0:00:12]}  Rf3+ {[%clk 0:00:04]} 58. Ke1 {[%clk 0:00:12]}  Bg3+ {[%clk 0:00:04]} 59. Ke2 {[%clk 0:00:12]}  Rf2+ {[%clk 0:00:04]} 60. Kd3 {[%clk 0:00:10]}  Rf3+ {[%clk 0:00:05]} 61. Kd2 {[%clk 0:00:10]}  Rf2+ {[%clk 0:00:02]} 62. Kc1 {[%clk 0:00:10]}  Bf4+ {[%clk 0:00:03]} 63. Kb2 {[%clk 0:00:10]}  Bxh6 {[%clk 0:00:01]} 64. Qxh6 {[%clk 0:00:09]} 1-0


[Site "https://www.chess.com"]

[Event "Titled Tuesday Blitz March 01 Late 2022"]
[White "Vusatiuk, Vladimir"]
[Black "Rudzinska, Michalina"]
[WhiteFideId "14118610"]
[BlackFideId "1172883"]
[WhiteElo "2157"]
[BlackElo "1904"]
[Result "1-0"]
[Round "09"]
[TimeControl "180+1"]
[Date "2022.03.02"]
[WhiteClock "0:00:39"]
[BlackClock "0:00:04"]

1. Nf3 {[%clk 0:03:00]}  d5 {[%clk 0:02:54]} 2. h4 {[%clk 0:03:00]}  Nf6 {[%clk 0:02:52]} 3. h5 {[%clk 0:02:59]}  c5 {[%clk 0:02:49]} 4. d3 {[%clk 0:02:58]}  h6 {[%clk 0:02:47]} 5. c3 {[%clk 0:02:57]}  Bg4 {[%clk 0:02:47]} 6. Nbd2 {[%clk 0:02:49]}  Bxh5 {[%clk 0:02:46]} 7. Ne5 {[%clk 0:02:44]}  Nc6 {[%clk 0:02:42]} 8. Qa4 {[%clk 0:02:39]}  Qc7 {[%clk 0:02:34]} 9. Ndf3 {[%clk 0:02:39]}  Bxf3 {[%clk 0:02:32]} 10. Nxf3 {[%clk 0:02:38]}  a6 {[%clk 0:02:27]} 11. Bf4 {[%clk 0:02:35]}  Qd7 {[%clk 0:02:24]} 12. g3 {[%clk 0:02:26]}  e6 {[%clk 0:02:24]} 13. Bg2 {[%clk 0:02:21]}  Bd6 {[%clk 0:02:24]} 14. Bd2 {[%clk 0:02:18]}  b5 {[%clk 0:02:15]} 15. Qc2 {[%clk 0:02:18]}  e5 {[%clk 0:02:08]} 16. e4 {[%clk 0:02:18]}  d4 {[%clk 0:02:08]} 17. Nh4 {[%clk 0:02:12]}  Ne7 {[%clk 0:02:06]} 18. Bh3 {[%clk 0:02:12]}  Qc7 {[%clk 0:02:05]} 19. Ke2 {[%clk 0:01:59]}  dxc3 {[%clk 0:01:48]} 20. bxc3 {[%clk 0:01:58]}  Qc6 {[%clk 0:01:42]} 21. f3 {[%clk 0:01:50]}  Ra7 {[%clk 0:01:13]} 22. Be3 {[%clk 0:01:48]}  Rc7 {[%clk 0:01:13]} 23. a4 {[%clk 0:01:47]}  b4 {[%clk 0:01:11]} 24. Rhc1 {[%clk 0:01:42]}  g6 {[%clk 0:00:57]} 25. cxb4 {[%clk 0:01:34]}  cxb4 {[%clk 0:00:57]} 26. Qxc6+ {[%clk 0:01:34]}  Nxc6 {[%clk 0:00:42]} 27. Bb6 {[%clk 0:01:34]}  Nd4+ {[%clk 0:00:39]} 28. Bxd4 {[%clk 0:01:30]}  exd4 {[%clk 0:00:38]} 29. Rxc7 {[%clk 0:01:30]}  Bxc7 {[%clk 0:00:39]} 30. Rc1 {[%clk 0:01:31]}  Bd8 {[%clk 0:00:23]} 31. Rc4 {[%clk 0:01:11]}  a5 {[%clk 0:00:22]} 32. Rxd4 {[%clk 0:01:12]}  b3 {[%clk 0:00:21]} 33. Kd2 {[%clk 0:01:10]}  Be7 {[%clk 0:00:19]} 34. Kc3 {[%clk 0:01:07]}  O-O {[%clk 0:00:06]} 35. Kxb3 {[%clk 0:01:06]}  Rb8+ {[%clk 0:00:07]} 36. Kc2 {[%clk 0:01:06]}  Bb4 {[%clk 0:00:04]} 37. Rc4 {[%clk 0:01:06]}  Ne8 {[%clk 0:00:03]} 38. e5 {[%clk 0:01:04]}  Kf8 {[%clk 0:00:02]} 39. f4 {[%clk 0:01:04]}  Ke7 {[%clk 0:00:02]} 40. Nf3 {[%clk 0:01:04]}  Rb7 {[%clk 0:00:02]} 41. d4 {[%clk 0:01:04]}  Nc7 {[%clk 0:00:02]} 42. Bg2 {[%clk 0:01:00]}  Nd5 {[%clk 0:00:02]} 43. Kd3 {[%clk 0:01:00]}  Rd7 {[%clk 0:00:03]} 44. Nd2 {[%clk 0:00:53]}  Nb6 {[%clk 0:00:03]} 45. Rc6 {[%clk 0:00:51]}  Bxd2 {[%clk 0:00:03]} 46. Rxb6 {[%clk 0:00:47]}  Bb4 {[%clk 0:00:03]} 47. d5 {[%clk 0:00:47]}  Bc5 {[%clk 0:00:03]} 48. Rc6 {[%clk 0:00:39]}  Bf2 {[%clk 0:00:03]} 49. d6+ {[%clk 0:00:39]}  Ke8 {[%clk 0:00:03]} 50. Rc8+ {[%clk 0:00:38]}  Rd8 {[%clk 0:00:04]} 51. Bc6+ {[%clk 0:00:39]} 1-0


[Site "https://www.chess.com"]